fUST/lending_fUST_20260226
["ID","MTS","AMOUNT","RATE_DAILY","PERIOD"]
[406705771,1772110239177,-566.43523267,0.00014368,2]
[406705772,1772110239186,-1500.0,0.00014368,2]
[406705773,1772110239196,-1448.99688877,0.00014368,2]
[406705774,1772110239205,-610.40990388,0.00014368,2]
[406705775,1772110239215,-476.65358506,0.00014768,2]
[406705776,1772110239224,-500.0,0.00014768,2]
[406705777,1772110239233,-300.0,0.00014794,2]
[406705778,1772110239242,-300.0,0.00014794,2]
[406705779,1772110239252,-753.62958709,0.00014795,2]
[406705780,1772110239262,-895.38945896,0.00014795,2]
[406705781,1772110239271,-1500.0,0.00014795,2]
[406705782,1772110239281,-1500.0,0.00014795,2]
[406705783,1772110239291,-1000.0,0.00014916,2]
[406705784,1772110239300,-500.0,0.00015042,2]
[406705785,1772110239310,-1313.0,0.00015067,2]
[406705786,1772110239319,-500.0,0.00015316,2]
[406705787,1772110239329,-513.0968782,0.00015342,2]
[406705788,1772110239338,-2000.0,0.00015342,2]
[406705789,1772110239348,-720.0,0.00015369,2]
[406705790,1772110239358,-500.0,0.000157,2]
[406705791,1772110239369,-189.26,0.000157,2]
[406705792,1772110239378,-1467.83385017,0.00015784,2]
[406705793,1772110239388,-375.23438562,0.0001589,2]
[406705794,1772110239398,-420.0,0.00016194,2]
[406705795,1772110239407,-826.73962058,0.00016573,2]
[406705796,1772110239417,-864.0,0.00016906,2]
[406705797,1772110239427,-587.0,0.00017727,2]
[406705798,1772110239437,-238.01527554,0.00017795,2]
[406705799,1772110239446,-25606.31098447,0.00018,2]
[406705800,1772110239456,-1000.0,0.00018596,2]
[406705801,1772110239465,-69894.68000001,0.00019,2]
[406705802,1772110239475,-744.71502317,0.00019207,2]
[406705803,1772110239485,-802.0,0.00019406,2]
[406705804,1772110239494,-17783.6886717,0.00019741,2]
[406705805,1772110239504,-280.85802514,0.00019795,2]
[406705806,1772110239513,-61923.65666514,0.00019988,2]
[406705808,1772110242222,-104867.19057258,0.00019988,2]
[406705809,1772110242232,-151.0,0.00019988,2]
[406705810,1772110242242,-151.0,0.00019988,2]
[406705811,1772110242251,-151.0,0.00019988,2]
[406705812,1772110242261,-194.72792766,0.00019988,2]
[406705813,1772110242270,-151.0,0.00019988,2]
[406705814,1772110242280,-201.93286099,0.00019988,2]
[406705815,1772110242290,-151.0,0.00019988,2]
[406705816,1772110242300,-209.40437684,0.00019988,2]
[406705817,1772110242310,-217.15233878,0.00019988,2]
[406705818,1772110242320,-151.0,0.00019988,2]
[406705819,1772110242329,-225.18697532,0.00019988,2]
[406705820,1772110242340,-151.0,0.00019988,2]
[406705821,1772110242350,-233.51889341,0.00019988,2]
[406705822,1772110242359,-151.0,0.00019988,2]
[406705823,1772110242369,-242.15909246,0.00019988,2]
[406705824,1772110242379,-163.27583158,0.00019988,2]
[406705825,1772110242389,-251.11897888,0.00019988,2]
[406705826,1772110242399,-260.4103811,0.00019988,2]
[406705827,1772110242409,-270.0455652,0.00019988,2]
[406705828,1772110242418,-280.03725112,0.00019988,2]
[406705829,1772110242428,-290.39862941,0.00019988,2]
[406705830,1772110242438,-301.1433787,0.00019988,2]
[406705831,1772110242448,-634.01,0.0001999,3]
[406705832,1772110242458,-500.0,0.00019999,2]
[406705833,1772110242468,-188.84126353,0.00019999,2]
[406705834,1772110242478,-9327.95841981,0.0002,2]
[406705841,1772110244271,-6760.46270991,0.0002,2]
[406705847,1772110245751,-5000.0,0.00019788,2]
[406705848,1772110245761,-174775.59091192,0.0002,2]
[406705849,1772110245770,-5000.0,0.0002,2]
[406705850,1772110245780,-338.0,0.0002,2]
[406705851,1772110245790,-466.40871835,0.0002,2]
[406705852,1772110245799,-676823.0909,0.0002,20]
[406705853,1772110245809,-181.423394,0.0002,2]
[406705854,1772110245818,-181.423394,0.0002,2]
[406705855,1772110245827,-181.423394,0.0002,2]
[406705856,1772110245837,-181.423394,0.0002,2]
[406705857,1772110245847,-181.423394,0.0002,2]
[406705858,1772110245856,-181.423394,0.0002,2]
[406705859,1772110245865,-181.423394,0.0002,2]
[406705860,1772110245874,-181.423394,0.0002,2]
[406705861,1772110245884,-151.0,0.0002,2]
[406705862,1772110245893,-151.0,0.0002,2]
[406705863,1772110245903,-201.215118,0.0002,2]
[406705864,1772110245913,-2000.0,0.0002,7]
[406705865,1772110245922,-487.0,0.0002,2]
[406705866,1772110245931,-487.0,0.0002,2]
[406705867,1772110245941,-487.0,0.0002,2]
[406705868,1772110245950,-487.0,0.0002,2]
[406705869,1772110245960,-871.66,0.0002,2]
[406705870,1772110245970,-500.0,0.00020083,2]
[406705871,1772110245981,-500.0,0.00020093,2]
[406705872,1772110245990,-275.0,0.00020349,120]
[406705873,1772110246001,-206.0,0.00020349,120]
[406705874,1772110246011,-355.24,0.0002036,3]
[406705875,1772110246022,-3521.76931005,0.00020398,2]
[406705876,1772110246031,-159.0,0.000204,120]
[406705877,1772110246041,-163.0,0.000204,120]
[406705878,1772110246051,-347.0,0.000204,120]
[406705879,1772110246061,-172.0,0.000204,120]
[406705880,1772110246071,-172.0,0.000204,120]
[406705881,1772110246080,-151.0,0.00020429,2]
[406705882,1772110246091,-1000.0,0.00020456,2]
[406705883,1772110246101,-244.0,0.00020456,2]
[406705884,1772110246111,-2752.221166,0.00020548,2]
[406705885,1772110246120,-2000.0,0.00020588,7]
[406705886,1772110246129,-1397.55352461,0.0002061,2]
[406705887,1772110246138,-3230.57167927,0.00020688,2]
[406705888,1772110246148,-358.2469207,0.000207,7]
[406705889,1772110246158,-1353.32972908,0.000207,7]
[406705890,1772110246168,-1000.0,0.00020767,5]
[406705891,1772110246177,-957.0,0.00020771,10]
[406705892,1772110246187,-258.01526345,0.000209,2]
[406705893,1772110246196,-786.0,0.000209,2]
[406705894,1772110246206,-500.0,0.00020989,2]
[406705895,1772110246216,-5015.81082769,0.00021,5]
[406705896,1772110246226,-279.08093824,0.00021,2]
[406705897,1772110246235,-1572.6310936,0.00021,10]
[406705898,1772110246245,-50000.0,0.00021,2]
[406705899,1772110246254,-2720.0,0.00021,2]
[406705900,1772110246264,-200.00535596,0.00021,2]
[406705901,1772110246274,-500.89,0.00021,2]
[406705902,1772110246283,-3000.0,0.00021,2]
[406705903,1772110246292,-154.622662,0.00021,2]
[406705904,1772110246302,-181.423394,0.00021,2]
[406705905,1772110246312,-181.423394,0.00021,2]
[406705906,1772110246321,-181.423394,0.00021,2]
[406705907,1772110246331,-181.423394,0.00021,2]
[406705908,1772110246340,-151.0,0.00021,2]
[406705909,1772110246351,-3000.0,0.0002101,2]
[406705910,1772110246360,-300.18530404,0.0002101,2]
[406705911,1772110246370,-3000.0,0.0002102,2]
[406705912,1772110246379,-3000.0,0.0002103,2]
[406705913,1772110246388,-3551.04247843,0.0002103,2]
[406705914,1772110246398,-3000.0,0.0002104,2]
[406705915,1772110246407,-3000.0,0.0002105,2]
[406705916,1772110246416,-187.609683,0.0002105,2]
[406705918,1772110246426,-151.0,0.00021056,2]
[406705920,1772110246436,-3000.0,0.0002106,2]
[406705922,1772110246446,-3000.0,0.0002107,2]
[406705924,1772110246455,-3000.0,0.0002108,2]
[406705926,1772110246465,-3000.0,0.0002109,2]
[406705928,1772110246475,-3000.0,0.000211,2]
[406705930,1772110246484,-3000.0,0.0002111,2]
[406705932,1772110246494,-3000.0,0.0002112,2]
[406705933,1772110246504,-3000.0,0.0002113,2]
[406705934,1772110246514,-3000.0,0.0002114,2]
[406705936,1772110246524,-3000.0,0.0002115,2]
[406705938,1772110246534,-3000.0,0.0002116,2]
[406705939,1772110246543,-3000.0,0.0002117,2]
[406705940,1772110246553,-2000.0,0.00021176,7]
[406705941,1772110246562,-3000.0,0.0002118,2]
[406705942,1772110246572,-3000.0,0.0002119,2]
[406705943,1772110246582,-3000.0,0.000212,2]
[406705944,1772110246591,-3671.33290544,0.00021201,2]
[406705945,1772110246602,-7729.52297897,0.00021201,2]
[406705946,1772110246612,-181.423394,0.00021201,2]
[406705947,1772110246621,-181.423394,0.00021201,2]
[406705948,1772110246631,-181.423394,0.00021201,2]
[406705949,1772110246641,-181.423386,0.00021201,2]
[406705950,1772110246651,-3000.0,0.0002121,2]
[406705951,1772110246660,-151.0,0.0002121,2]
[406705952,1772110246670,-3000.0,0.0002122,2]
[406705953,1772110246680,-3000.0,0.0002123,2]
[406705954,1772110246690,-3000.0,0.0002124,2]
[406705955,1772110246700,-3000.0,0.0002125,2]
[406705956,1772110246710,-3000.0,0.0002126,2]
[406705957,1772110246723,-3000.0,0.0002127,2]
[406705958,1772110246733,-3000.0,0.0002128,2]
[406705959,1772110246743,-3000.0,0.0002129,2]
[406705960,1772110246752,-3000.0,0.000213,2]
[406705961,1772110246763,-3000.0,0.0002131,2]
[406705962,1772110246773,-3000.0,0.0002132,2]
[406705963,1772110246784,-3000.0,0.0002133,2]
[406705964,1772110246793,-3000.0,0.0002134,2]
[406705965,1772110246802,-3000.0,0.0002135,2]
[406705966,1772110246812,-3000.0,0.0002136,2]
[406705967,1772110246821,-275.0,0.00021366,120]
[406705968,1772110246830,-206.0,0.00021366,120]
[406705969,1772110246840,-3046.561712,0.0002137,2]
[406705970,1772110246849,-159.0,0.0002142,120]
[406705971,1772110246859,-347.0,0.0002142,120]
[406705972,1772110246868,-172.0,0.0002142,120]
[406705973,1772110246878,-172.0,0.0002142,120]
[406705974,1772110246888,-2900.0,0.00021431,10]
[406705975,1772110246898,-1046.05960713,0.000215,2]
[406705976,1772110246907,-12940.10614643,0.000215,2]
[406705977,1772110246918,-403.0,0.00021572,2]
[406705978,1772110246928,-1288.2704965,0.00021604,8]
[406705979,1772110246938,-567.0,0.00021682,2]
[406705980,1772110246947,-151.0,0.00021683,2]
[406705981,1772110246956,-2000.0,0.00021765,7]
[406705982,1772110246966,-323.70077473,0.00021795,2]
[406705983,1772110246975,-250.0,0.00021825,2]
[406705984,1772110246985,-637.0,0.00021891,2]
[406705985,1772110246994,-2181.0,0.00021891,2]
[406705986,1772110247003,-1386.0,0.00021891,2]
[406705987,1772110247014,-430.0,0.00021891,2]
[406705988,1772110247023,-715.0,0.00021892,2]
[406705989,1772110247032,-683.484,0.00021908,2]
[406705990,1772110247042,-683.4837,0.00021908,2]
[406705991,1772110247052,-683.4837,0.00021908,2]
[406705992,1772110247062,-683.4837,0.00021908,2]
[406705993,1772110247072,-683.4837,0.00021908,2]
[406705994,1772110247081,-683.4837,0.00021908,2]
[406705995,1772110247091,-1027.063376,0.00021918,2]
[406705996,1772110247100,-1027.063376,0.00021918,2]
[406705997,1772110247109,-1027.063376,0.00021918,2]
[406705998,1772110247119,-1027.063376,0.00021918,2]
[406705999,1772110247128,-1027.063376,0.00021918,2]
[406706000,1772110247140,-1027.063376,0.00021918,2]
[406706001,1772110247149,-1027.063376,0.00021918,2]
[406706002,1772110247159,-1027.063376,0.00021918,2]
[406706003,1772110247169,-1027.063376,0.00021918,2]
[406706004,1772110247180,-1027.063376,0.00021918,2]
[406706005,1772110247189,-1027.063376,0.00021918,2]
[406706006,1772110247199,-1027.063376,0.00021918,2]
[406706007,1772110247208,-1027.063376,0.00021918,2]
[406706008,1772110247218,-1027.063376,0.00021918,2]
[406706009,1772110247227,-1027.063376,0.00021918,2]
[406706010,1772110247237,-1027.063376,0.00021918,2]
[406706011,1772110247246,-1027.063376,0.00021918,2]
[406706012,1772110247256,-1027.063376,0.00021918,2]
[406706013,1772110247266,-1027.063376,0.00021918,2]
[406706014,1772110247275,-1027.063374,0.00021918,2]
[406706015,1772110247284,-150.0,0.00021918,2]
[406706016,1772110247293,-150.0,0.00021918,2]
[406706017,1772110247303,-572.99818278,0.0002196,10]
[406706018,1772110247312,-1288.2704965,0.00022007,10]
[406706019,1772110247322,-500.0,0.00022039,2]
[406706020,1772110247332,-500.0,0.00022092,2]
[406706021,1772110247342,-3584.34775648,0.00022173,2]
[406706022,1772110247352,-1907.66,0.00022184,2]
[406706023,1772110247362,-500.0,0.00022213,2]
[406706024,1772110247372,-1271.78,0.00022273,2]
[406706025,1772110247381,-3968.0773013,0.00022301,2]
[406706026,1772110247391,-151.0,0.00022309,2]
[406706027,1772110247401,-500.0,0.00022312,2]
[406706028,1772110247410,-150.0,0.00022321,2]
[406706029,1772110247420,-2000.0,0.00022353,7]
[406706030,1772110247430,-1288.2704965,0.0002241,11]
[406706031,1772110247440,-207.401,0.00022434,2]
[406706032,1772110247449,-227.553,0.00022434,2]
[406706033,1772110247458,-150.572,0.00022434,2]
[406706034,1772110247467,-250.0,0.00022434,2]
[406706035,1772110247476,-275.0,0.00022435,120]
[406706036,1772110247486,-500.0,0.00022458,2]
[406706037,1772110247496,-300.0,0.00022466,2]
[406706038,1772110247505,-200.0,0.00022466,2]
[406706039,1772110247515,-159.0,0.00022491,120]
[406706040,1772110247524,-347.0,0.00022491,120]
[406706041,1772110247533,-172.0,0.00022491,120]
[406706042,1772110247544,-172.0,0.00022491,120]
[406706043,1772110247553,-1039.99057297,0.000225,2]
[406706044,1772110247563,-1000.0,0.00022501,10]
[406706045,1772110247573,-492.0,0.00022501,10]
[406706046,1772110247582,-500.0,0.00022561,2]
[406706047,1772110247591,-162.0,0.00022792,3]
[406706048,1772110247600,-1288.2704965,0.00022812,12]
[406706049,1772110247609,-885.3977237,0.00022873,2]
[406706050,1772110247623,-5702.9736269,0.00022875,2]
[406706051,1772110247633,-151.0,0.00022936,2]
[406706052,1772110247643,-2000.0,0.00022941,7]
[406706053,1772110247652,-2866.34643704,0.00023,120]
[406706054,1772110247661,-1000.0,0.00023,2]
[406706055,1772110247671,-450.0,0.00023014,2]
[406706056,1772110247681,-315.37820353,0.00023014,2]
[406706057,1772110247690,-715.0,0.00023106,3]
[406706058,1772110247701,-715.0,0.00023112,3]
[406706059,1772110247712,-1288.2704965,0.00023215,14]
[406706060,1772110247723,-4023.44244681,0.00023315,2]
[406706061,1772110247732,-715.0,0.00023432,3]
[406706062,1772110247742,-2000.0,0.00023529,7]
[406706063,1772110247751,-600.0,0.00023562,2]
[406706064,1772110247760,-151.0,0.00023563,2]
[406706065,1772110247770,-1288.2704965,0.00023618,15]
[406706066,1772110247781,-200.0,0.00023716,8]
[406706067,1772110247791,-403.0,0.00023752,3]
[406706068,1772110247800,-403.0,0.00023752,3]
[406706069,1772110247809,-366.54352433,0.00023794,2]
[406706070,1772110247819,-162.0,0.00023844,3]
[406706071,1772110247828,-715.0,0.00023844,3]
[406706072,1772110247838,-715.0,0.00023844,3]
[406706073,1772110247849,-2500.0,0.000239,120]
[406706074,1772110247858,-12907.97669381,0.000239,2]
[406706075,1772110248017,-403.0,0.00023906,3]
[406706076,1772110248047,-24781.75112622,0.00023919,7]
[406706077,1772110248058,-403.0,0.00023934,3]
[406706078,1772110248067,-1747.62980212,0.00024,2]
[406706079,1772110248076,-2157.33249993,0.00024,120]
[406706080,1772110248085,-468.77353151,0.00024,2]
[406706081,1772110248095,-155466.5791627,0.00024,2]
[406706082,1772110248105,-5036.31,0.00024,2]
[406706083,1772110248115,-247.10898714,0.00024,60]
[406706084,1772110248125,-195.99,0.00024,14]
[406706085,1772110248134,-86823.52726124,0.00024,2]
[406706086,1772110248144,-744.71502317,0.00024,7]
[406706087,1772110248153,-281.6,0.00024,2]
[406706088,1772110248163,-250.0,0.00024,10]
[406706089,1772110248173,-715.0,0.00024012,3]
[406706090,1772110248182,-1288.2704965,0.00024021,17]
[406706091,1772110248191,-250.0,0.000241,10]
[406706092,1772110248201,-2470.73170401,0.00024108,120]
[406706093,1772110248210,-750.0,0.0002411,2]
[406706094,1772110248220,-2000.0,0.00024118,7]
[406706095,1772110248229,-2141.43355183,0.00024142,2]
[406706096,1772110248242,-403.0,0.00024164,3]
[406706097,1772110248251,-162.0,0.00024164,3]
[406706098,1772110248261,-162.0,0.00024164,3]
[406706099,1772110248270,-715.0,0.00024164,3]
[406706100,1772110248280,-245.0,0.00024185,3]
[406706101,1772110248289,-151.0,0.0002419,2]
[406706102,1772110248298,-250.0,0.000242,10]
[406706103,1772110248307,-715.0,0.00024226,3]
[406706104,1772110248317,-250.0,0.000243,10]
[406706105,1772110248326,-250.0,0.000244,10]
[406706106,1772110248335,-377.0,0.00024407,3]
[406706107,1772110248345,-403.0,0.00024407,3]
[406706108,1772110248355,-1288.2704965,0.00024424,18]
[406706109,1772110248365,-347.0,0.00024449,2]
[406706110,1772110248374,-1700.0,0.00024473,2]
[406706111,1772110248383,-300.0,0.00024473,2]
[406706112,1772110248393,-300.0,0.00024473,2]
[406706113,1772110248403,-300.0,0.00024473,2]
[406706114,1772110248413,-300.0,0.00024473,2]
[406706115,1772110248422,-342.0,0.00024473,2]
[406706116,1772110248432,-414.0,0.00024484,3]
[406706117,1772110248442,-715.0,0.00024484,3]
[406706118,1772110248451,-2000.0,0.00024485,2]
[406706119,1772110248462,-2000.0,0.00024485,2]
[406706120,1772110248471,-2000.0,0.00024485,2]
[406706121,1772110248480,-2000.0,0.00024485,2]
[406706122,1772110248490,-2000.0,0.00024485,2]
[406706123,1772110248500,-2000.0,0.00024485,2]
[406706124,1772110248509,-2000.0,0.00024485,2]
[406706125,1772110248519,-2000.0,0.00024485,2]
[406706126,1772110248530,-2000.0,0.00024485,2]
[406706127,1772110248540,-2000.0,0.00024485,2]
[406706128,1772110248550,-2000.0,0.00024485,2]
[406706129,1772110248560,-2000.0,0.00024485,2]
[406706130,1772110248570,-2000.0,0.00024485,2]
[406706131,1772110248580,-2000.0,0.00024485,2]
[406706132,1772110248590,-2000.0,0.00024485,2]
[406706133,1772110248599,-2000.0,0.00024485,2]
[406706134,1772110248608,-1983.0,0.00024485,2]
[406706135,1772110248617,-500.0,0.00024485,2]
[406706136,1772110248627,-500.0,0.00024485,2]
[406706137,1772110248637,-500.0,0.00024485,2]
[406706138,1772110248646,-500.0,0.00024485,2]
[406706139,1772110248656,-500.0,0.00024485,2]
[406706140,1772110248665,-500.0,0.00024485,2]
[406706141,1772110248675,-500.0,0.00024485,2]
[406706142,1772110248686,-500.0,0.00024485,2]
[406706143,1772110248695,-500.0,0.00024485,2]
[406706144,1772110248704,-500.0,0.00024485,2]
[406706145,1772110248716,-500.0,0.00024485,2]
[406706146,1772110248726,-500.0,0.00024485,2]
[406706147,1772110248735,-500.0,0.00024485,2]
[406706148,1772110248745,-500.0,0.00024485,2]
[406706149,1772110248755,-500.0,0.00024485,2]
[406706150,1772110248765,-500.0,0.00024485,2]
[406706151,1772110248774,-500.0,0.00024485,2]
[406706152,1772110248783,-500.0,0.00024485,2]
[406706153,1772110248794,-250.0,0.000245,10]
[406706154,1772110248803,-250.0,0.000246,10]
[406706155,1772110248812,-711.0,0.00024638,2]
[406706156,1772110248822,-150.0,0.00024638,2]
[406706157,1772110248831,-260.0,0.00024638,2]
[406706158,1772110248840,-683.4837,0.00024648,7]
[406706159,1772110248850,-517.31619874,0.0002465,2]
[406706160,1772110248859,-137433.49558526,0.0002465,2]
[406706161,1772110248869,-160.0,0.00024658,2]
[406706162,1772110248880,-160.0,0.00024658,2]
[406706163,1772110248891,-160.0,0.00024658,2]
[406706164,1772110248901,-160.0,0.00024658,2]
[406706165,1772110248910,-160.0,0.00024658,2]
[406706166,1772110248919,-203.46465514,0.00024658,2]
[406706167,1772110248929,-463.15846324,0.00024658,2]
[406706168,1772110248941,-150.0,0.00024658,2]
[406706169,1772110248950,-200.0,0.00024658,2]
[406706170,1772110248960,-380.0,0.00024658,2]
[406706171,1772110248970,-2971.437544,0.00024658,2]
[406706172,1772110248979,-2971.437544,0.00024658,2]
[406706173,1772110248989,-2971.437544,0.00024658,2]
[406706174,1772110248999,-2971.437544,0.00024658,2]
[406706175,1772110249010,-2971.437544,0.00024658,2]
[406706176,1772110249020,-2971.437544,0.00024658,2]
[406706177,1772110249029,-2971.437544,0.00024658,2]
[406706178,1772110249039,-2971.437544,0.00024658,2]
[406706179,1772110249049,-2971.437544,0.00024658,2]
[406706180,1772110249058,-2971.437544,0.00024658,2]
[406706181,1772110249067,-2971.437544,0.00024658,2]
[406706182,1772110249077,-2971.437544,0.00024658,2]
[406706183,1772110249087,-2971.437544,0.00024658,2]
[406706184,1772110249096,-2971.437544,0.00024658,2]
[406706185,1772110249106,-2971.437544,0.00024658,2]
[406706186,1772110249116,-2971.437544,0.00024658,2]
[406706187,1772110249125,-2971.437544,0.00024658,2]
[406706188,1772110249135,-2971.437544,0.00024658,2]
[406706189,1772110249144,-2971.437544,0.00024658,2]
[406706190,1772110249154,-2971.437549,0.00024658,2]
[406706191,1772110249163,-150.0,0.00024658,2]
[406706192,1772110249174,-525.27552015,0.00024681,2]
[406706193,1772110249183,-250.0,0.000247,10]
[406706194,1772110249193,-2000.0,0.00024706,7]
[406706195,1772110249203,-150.0,0.00024713,2]
[406706196,1772110249213,-715.0,0.00024727,3]
[406706197,1772110249223,-62530.25955622,0.0002475,2]
[406706198,1772110249232,-1000.0,0.00024752,10]
[406706199,1772110249244,-791.0,0.00024752,10]
[406706200,1772110249254,-150.0,0.00024768,2]
[406706201,1772110249263,-250.0,0.000248,10]
[406706202,1772110249273,-403.0,0.00024804,3]
[406706203,1772110249282,-715.0,0.00024804,3]
[406706204,1772110249292,-151.0,0.00024817,2]
[406706205,1772110249301,-193.24848161,0.00024822,2]
[406706206,1772110249310,-1288.2704965,0.00024827,19]
[406706207,1772110249319,-644.18869093,0.00024882,2]
[406706208,1772110249328,-637.0,0.00024891,2]
[406706209,1772110249336,-2181.0,0.00024891,2]
[406706210,1772110249345,-1386.0,0.00024891,2]
[406706211,1772110249355,-185.651,0.00024891,2]
[406706212,1772110249364,-162.0,0.00024894,3]
[406706213,1772110249373,-250.0,0.000249,10]
[406706214,1772110249381,-520959.57939,0.000249,2]
[406706215,1772110249390,-752.9134666,0.00025,120]
[406706216,1772110249399,-2691.81911493,0.00025,2]
[406706217,1772110249408,-10364.0,0.00025,2]
[406706218,1772110249416,-150.0,0.00025,2]
[406706219,1772110249425,-500.0,0.00025,2]
[406706220,1772110249434,-764.9361649,0.00025,2]
[406706221,1772110249443,-3029.06222755,0.00025,30]
[406706222,1772110249453,-1000.0,0.00025,2]
[406706223,1772110249462,-517.0,0.00025,120]
[406706224,1772110249471,-1000.0,0.00025,2]
[406706225,1772110249481,-1000.0,0.00025,2]
[406706226,1772110249490,-1000.0,0.00025,2]
[406706227,1772110249500,-10000.0,0.00025,30]
[406706228,1772110249509,-1465.0,0.00025,30]
[406706229,1772110249519,-3405.05808228,0.00025,2]
[406706230,1772110249528,-331.38372517,0.00025,14]
[406706231,1772110249538,-3000.0,0.00025,4]
[406706232,1772110249547,-250.0,0.00025,10]
[406706233,1772110249556,-1125.47310456,0.00025,2]
[406706234,1772110249565,-2715.29,0.00025,30]
[406706235,1772110249574,-744.71502317,0.00025,3]
[406706236,1772110249583,-250.0,0.000251,10]
[406706237,1772110249592,-715.0,0.00025124,3]
[406706238,1772110249602,-500.0,0.0002514,7]
[406706239,1772110249611,-500.0,0.00025172,7]
[406706240,1772110249620,-1864.26757648,0.0002519,10]
[406706241,1772110249629,-1377.75205181,0.0002519,30]
[406706242,1772110249639,-250.0,0.00025205,2]
[406706243,1772110249649,-1288.2704965,0.00025229,21]
[406706244,1772110249658,-500.0,0.00025294,7]
[406706245,1772110249667,-2000.0,0.00025294,7]
[406706246,1772110249676,-160.0,0.00025322,3]
[406706247,1772110249685,-161.15810213,0.00025322,5]
[406706248,1772110249695,-200.0,0.000254,18]
[406706249,1772110249704,-150.0,0.000254,5]
[406706250,1772110249716,-635.7482107,0.000254,2]
[406706251,1772110249726,-150.0,0.00025434,2]
[406706252,1772110249735,-150.0,0.00025434,2]
[406706253,1772110249744,-150.0,0.00025434,2]
[406706254,1772110249755,-150.0,0.00025434,2]
[406706255,1772110249765,-151.0,0.00025444,2]
[406706256,1772110249774,-297689.32143237,0.00025444,2]
[406706257,1772110250343,-808.792633,0.00025444,2]
[406706258,1772110251151,-184.91419289,0.00019988,2]
[406706259,1772110251162,-150.0,0.0002,2]
[406706260,1772110251173,-150.0,0.000205,2]
[406706261,1772110251183,-178.54,0.000211,2]
[406706262,1772110251193,-2507.16404067,0.00025444,2]
[406706266,1772110331913,392.76,0.00012329,2]
[406706267,1772110335834,300.0,0.00013099,120]
[406706268,1772110342326,993.82832247,0.00012329,2]
[406706269,1772110389565,1000.0,0.000154,120]
[406706270,1772110434494,1000.0,0.000157,120]
[406706271,1772110444998,1000.0,0.000157,120]
[406706272,1772110499631,165.37,0.000157,120]
[406706284,1772110954911,524.54795434,0.0001,2]
[406706285,1772110967652,165.73,0.000105,2]
[406706286,1772111140124,-383.83924639,0.00011149,2]
[406706287,1772111140144,-947.4361462,0.00011262,2]
[406706288,1772111140164,-261.10346443,0.00011434,2]
[406706289,1772111140184,-583.0,0.00011607,2]
[406706290,1772111140202,-300.0,0.000123,2]
[406706291,1772111140220,-300.0,0.00012327,2]
[406706292,1772111140239,-1200.0,0.00012327,2]
[406706293,1772111140258,-1459.69149372,0.00012328,2]
[406706294,1772111140277,-300.0,0.00012328,2]
[406706295,1772111140298,-300.0,0.00012328,2]
[406706296,1772111140317,-300.0,0.00012328,2]
[406706297,1772111140337,-300.0,0.00012328,2]
[406706298,1772111140356,-898.65,0.00012329,2]
[406706299,1772111140375,-797.4,0.00012329,2]
[406706300,1772111140394,-664.5,0.00012329,2]
[406706301,1772111140413,-553.75,0.00012329,2]
[406706302,1772111140431,-461.46,0.00012329,2]
[406706303,1772111140450,-384.55,0.00012329,2]
[406706304,1772111140469,-320.46,0.00012329,2]
[406706305,1772111140489,-267.05,0.00012329,2]
[406706306,1772111140691,-222.54,0.00012329,2]